fUST/lending_fUST_20240713
["ID","MTS","AMOUNT","RATE_DAILY","PERIOD"]
[331934700,1720869032281,-156.42124676,0.00023453,2]
[331934701,1720869032291,-390.61160968,0.00024557,2]
[331934702,1720869032300,-500.0,0.00024657,2]
[331934703,1720869032309,-511.11040264,0.00024657,2]
[331934704,1720869032319,-500.0,0.00024657,2]
[331934705,1720869032329,-504.08796653,0.00024657,2]
[331934706,1720869032338,-500.0,0.00024657,2]
[331934707,1720869032347,-500.0,0.00024657,2]
[331934708,1720869032357,-526.74775119,0.00024657,2]
[331934709,1720869032366,-506.27549819,0.00024657,2]
[331934710,1720869032375,-500.0,0.00024657,2]
[331934711,1720869032384,-500.0,0.00024657,2]
[331934712,1720869032394,-1500.0,0.00024657,2]
[331934713,1720869032404,-500.0,0.00024657,2]
[331934714,1720869032413,-500.0,0.00024657,2]
[331934715,1720869032423,-500.0,0.00024657,2]
[331934716,1720869032443,-500.0,0.00024657,2]
[331934717,1720869032454,-500.0,0.00024657,2]
[331934718,1720869032466,-500.0,0.00024657,2]
[331934719,1720869032476,-508.04637853,0.00024657,2]
[331934720,1720869032486,-500.0,0.00024657,2]
[331934721,1720869032496,-593.83948502,0.00024657,2]
[331934722,1720869032506,-500.0,0.00024657,2]
[331934723,1720869032516,-500.0,0.00024657,2]
[331934724,1720869032525,-500.0,0.00024657,2]
[331934725,1720869032536,-599.36624513,0.00024657,2]
[331934726,1720869032546,-500.0,0.00024657,2]
[331934727,1720869032557,-456.98743167,0.00024657,2]
[331934728,1720869032887,-43.01256833,0.00024657,2]
[331934729,1720869032897,-561.89,0.00024657,2]
[331934730,1720869032908,-500.0,0.00024657,2]
[331934731,1720869032918,-500.0,0.00024657,2]
[331934732,1720869032928,-500.0,0.00024657,2]
[331934733,1720869032938,-500.0,0.00024657,2]
[331934734,1720869032949,-500.0,0.00024657,2]
[331934735,1720869032959,-500.0,0.00024657,2]
[331934736,1720869032970,-500.0,0.00024657,2]
[331934737,1720869032980,-493.8825858,0.00024657,2]
[331934738,1720869032999,-6.1174142,0.00024657,2]
[331934739,1720869033009,-500.0,0.00024657,2]
[331934740,1720869033019,-500.0,0.00024657,2]
[331934741,1720869033030,-500.0,0.00024657,2]
[331934742,1720869033040,-500.0,0.00024657,2]
[331934743,1720869033049,-500.0,0.00024657,2]
[331934744,1720869033060,-500.0,0.00024657,2]
[331934745,1720869033069,-200.0,0.00024657,7]
[331934746,1720869033079,-500.0,0.00024657,2]
[331934747,1720869033089,-500.0,0.00024657,2]
[331934748,1720869033099,-510.74594422,0.00024657,2]
[331934749,1720869033109,-500.0,0.00024657,2]
[331934750,1720869033119,-500.0,0.00024657,2]
[331934751,1720869033128,-128.37503044,0.00024657,2]
[331934782,1720869038155,-1361.19830126,0.00024427,2]
[331934783,1720869038165,-371.62496956,0.00024657,2]
[331934784,1720869038175,-500.0,0.00024657,2]
[331934785,1720869038185,-524.96,0.00024657,2]
[331934786,1720869038195,-500.0,0.00024657,2]
[331934787,1720869038206,-600.77622436,0.00024657,2]
[331934788,1720869038216,-500.0,0.00024657,2]
[331934789,1720869038226,-500.0,0.00024657,2]
[331934790,1720869038236,-500.0,0.00024657,2]
[331934791,1720869038248,-500.0,0.00024657,2]
[331934792,1720869038257,-500.0,0.00024657,2]
[331934793,1720869038268,-500.0,0.00024657,2]
[331934794,1720869038277,-241.19759989,0.00024657,2]
[331934795,1720869038287,-500.0,0.00024657,2]
[331934796,1720869038297,-500.0,0.00024657,2]
[331934797,1720869038307,-500.0,0.00024657,2]
[331934798,1720869038317,-326.66317422,0.00024657,2]
[331934799,1720869038326,-500.0,0.00024657,2]
[331934800,1720869038336,-500.0,0.00024657,2]
[331934801,1720869038346,-500.0,0.00024657,2]
[331934802,1720869038356,-500.0,0.00024657,2]
[331934803,1720869038486,-500.0,0.00024657,2]
[331934804,1720869038498,-514.40629375,0.00024657,2]
[331934805,1720869038508,-500.0,0.00024657,2]
[331934806,1720869038519,-500.0,0.00024657,2]
[331934807,1720869038528,-500.0,0.00024657,2]
[331934808,1720869038538,-500.0,0.00024657,2]
[331934809,1720869038547,-500.0,0.00024657,2]
[331934810,1720869038557,-500.0,0.00024657,2]
[331934811,1720869038567,-500.0,0.00024657,2]
[331934812,1720869038576,-500.0,0.00024657,2]
[331934813,1720869038585,-500.0,0.00024657,2]
[331934814,1720869038595,-500.0,0.00024657,2]
[331934815,1720869038605,-500.0,0.00024657,2]
[331934816,1720869038615,-500.0,0.00024657,2]
[331934817,1720869038624,-500.0,0.00024657,2]
[331934818,1720869038634,-500.0,0.00024657,2]
[331934819,1720869038646,-500.0,0.00024657,2]
[331934820,1720869038656,-500.0,0.00024657,2]
[331934821,1720869038666,-500.0,0.00024657,2]
[331934822,1720869038675,-500.0,0.00024657,2]
[331934823,1720869038684,-500.0,0.00024657,2]
[331934824,1720869038694,-500.0,0.00024657,2]
[331934825,1720869038704,-500.0,0.00024657,2]
[331934826,1720869038714,-500.0,0.00024657,2]
[331934827,1720869038724,-500.0,0.00024657,2]
[331934828,1720869038736,-500.0,0.00024657,2]
[331934829,1720869038748,-500.0,0.00024657,2]
[331934830,1720869038758,-500.0,0.00024657,2]
[331934831,1720869038767,-500.0,0.00024657,2]
[331934832,1720869038777,-500.0,0.00024657,2]
[331934833,1720869038787,-500.0,0.00024657,2]
[331934834,1720869038797,-500.0,0.00024657,2]
[331934835,1720869038808,-504.01033806,0.00024657,2]
[331934836,1720869038817,-500.0,0.00024657,2]
[331934837,1720869038827,-500.0,0.00024657,2]
[331934838,1720869038838,-500.0,0.00024657,2]
[331934839,1720869038850,-500.0,0.00024657,2]
[331934840,1720869038860,-500.0,0.00024657,2]
[331934841,1720869038870,-500.0,0.00024657,2]
[331934842,1720869038880,-500.0,0.00024657,2]
[331934843,1720869038889,-500.0,0.00024657,2]
[331934844,1720869038900,-500.0,0.00024657,2]
[331934845,1720869038909,-500.0,0.00024657,2]
[331934846,1720869038919,-500.0,0.00024657,2]
[331934847,1720869038928,-500.0,0.00024657,2]
[331934848,1720869038938,-500.0,0.00024657,2]
[331934849,1720869038947,-500.0,0.00024657,2]
[331934850,1720869038957,-500.0,0.00024657,2]
[331934851,1720869038966,-2269.31,0.00024657,2]
[331934852,1720869038975,-464.40924793,0.00024657,2]
[331934853,1720869038985,-500.0,0.00024657,2]
[331934854,1720869038999,-500.0,0.00024657,2]
[331934855,1720869039009,-500.0,0.00024657,2]
[331934856,1720869039021,-500.0,0.00024657,2]
[331934857,1720869039030,-500.0,0.00024657,2]
[331934858,1720869039040,-500.0,0.00024657,2]
[331934859,1720869039050,-500.0,0.00024657,2]
[331934860,1720869039059,-500.0,0.00024657,2]
[331934861,1720869039070,-500.0,0.00024657,2]
[331934862,1720869039079,-500.0,0.00024657,2]
[331934863,1720869039089,-500.0,0.00024657,2]
[331934864,1720869039099,-500.0,0.00024657,2]
[331934865,1720869039108,-500.0,0.00024657,2]
[331934866,1720869039118,-500.0,0.00024657,2]
[331934867,1720869039127,-500.0,0.00024657,2]
[331934868,1720869039136,-500.0,0.00024657,2]
[331934869,1720869039146,-500.0,0.00024657,2]
[331934870,1720869039156,-500.0,0.00024657,2]
[331934871,1720869039165,-500.0,0.00024657,2]
[331934872,1720869039174,-500.0,0.00024657,2]
[331934873,1720869039184,-500.0,0.00024657,2]
[331934874,1720869039194,-500.0,0.00024657,2]
[331934875,1720869039203,-602.44590314,0.00024657,2]
[331934876,1720869039212,-500.0,0.00024657,2]
[331934877,1720869039222,-500.0,0.00024657,2]
[331934878,1720869039232,-500.0,0.00024657,2]
[331934879,1720869039242,-500.0,0.00024657,2]
[331934880,1720869039251,-500.0,0.00024657,2]
[331934881,1720869039266,-182.54486126,0.00024657,2]
[331934882,1720869039277,-500.0,0.00024657,2]
[331934883,1720869039286,-500.0,0.00024657,2]
[331934884,1720869039296,-500.0,0.00024657,2]
[331934885,1720869039305,-500.5299883,0.00024657,2]
[331934886,1720869039315,-500.0,0.00024657,2]
[331934887,1720869039324,-500.0,0.00024657,2]
[331934888,1720869039334,-500.0,0.00024657,2]
[331934889,1720869039343,-500.0,0.00024657,2]
[331934890,1720869039352,-321.19763501,0.00024657,2]
[331934891,1720869039362,-500.0,0.00024657,2]
[331934892,1720869039372,-500.0,0.00024657,2]
[331934893,1720869039381,-500.0,0.00024657,2]
[331934894,1720869039390,-500.0,0.00024657,2]
[331934895,1720869039400,-500.0,0.00024657,2]
[331934896,1720869039410,-500.0,0.00024657,2]
[331934897,1720869039419,-500.0,0.00024657,2]
[331934898,1720869039428,-500.0,0.00024657,2]
[331934899,1720869039438,-500.0,0.00024657,2]
[331934900,1720869039447,-500.0,0.00024657,2]
[331934901,1720869039456,-500.0,0.00024657,2]
[331934902,1720869039467,-500.0,0.00024657,2]
[331934903,1720869039476,-473.23964012,0.00024817,2]
[331934904,1720869039485,-2752.14679812,0.00024921,3]
[331934905,1720869039496,-500.0,0.00024931,2]
[331934906,1720869039505,-500.0,0.00024931,2]
[331934907,1720869039515,-500.0,0.00024931,2]
[331934908,1720869039524,-500.0,0.00024931,2]
[331934909,1720869039534,-500.0,0.00024931,2]
[331934910,1720869039543,-500.0,0.00024931,2]
[331934911,1720869039553,-500.0,0.00024931,2]
[331934912,1720869039563,-500.0,0.00024931,2]
[331934913,1720869039573,-225.56,0.00024931,2]
[331934914,1720869039582,-500.0,0.00024931,2]
[331934915,1720869039591,-500.0,0.00024931,2]
[331934916,1720869039600,-500.0,0.00024931,2]
[331934917,1720869039610,-501.83492839,0.00024931,2]
[331934918,1720869039619,-500.0,0.00024931,2]
[331934919,1720869039629,-500.0,0.00024931,2]
[331934920,1720869039638,-318.34102764,0.00024931,2]
[331934921,1720869039648,-500.0,0.00024931,2]
[331934922,1720869039657,-500.0,0.00024931,2]
[331934923,1720869039667,-500.0,0.00024931,2]
[331934924,1720869039676,-500.0,0.00024931,2]
[331934927,1720869039686,-500.0,0.00024931,2]
[331934928,1720869039695,-500.0,0.00024931,2]
[331934929,1720869039705,-500.0,0.00024931,2]
[331934930,1720869039714,-588.48,0.00024931,2]
[331934931,1720869039724,-500.0,0.00024931,2]
[331934932,1720869039733,-500.0,0.00024931,2]
[331934933,1720869039744,-608.26,0.00024931,2]
[331934934,1720869039753,-2269.31,0.00024931,2]
[331934935,1720869039763,-500.0,0.00024931,2]
[331934938,1720869039772,-500.0,0.00024931,2]
[331934940,1720869039781,-500.0,0.00024931,2]
[331934942,1720869039791,-500.0,0.00024931,2]
[331934944,1720869039800,-500.0,0.00024931,2]
[331934946,1720869039810,-500.0,0.00024931,2]
[331934948,1720869039819,-500.0,0.00024931,2]
[331934950,1720869039829,-500.0,0.00024931,2]
[331934952,1720869039838,-500.0,0.00024931,2]
[331934954,1720869039848,-500.0,0.00024931,2]
[331934957,1720869039857,-217.12,0.00024931,2]
[331934960,1720869039866,-500.0,0.00024931,2]
[331934963,1720869039876,-500.0,0.00024931,2]
[331934965,1720869039885,-500.0,0.00025204,2]
[331934968,1720869039894,-506.74518628,0.00025205,2]
[331934970,1720869039904,-297.75,0.00025205,2]
[331934972,1720869039913,-500.0,0.00025205,2]
[331934973,1720869039922,-500.0,0.00025205,2]
[331934974,1720869039932,-316.63180992,0.00025205,2]
[331934975,1720869039941,-500.0,0.00025205,2]
[331934976,1720869039950,-368.93,0.00025205,2]
[331934977,1720869039959,-500.0,0.00025205,2]
[331934978,1720869039969,-500.0,0.00025205,2]
[331934980,1720869039979,-2269.31,0.00025205,2]
[331934982,1720869039994,-500.0,0.00025205,2]
[331934983,1720869040003,-507.5197784,0.00025205,2]
[331934984,1720869040013,-602.73206834,0.00025205,2]
[331934985,1720869040023,-500.0,0.00025205,2]
[331934986,1720869040033,-8687.4,0.00025469,3]
[331934987,1720869040042,-500.0,0.00025479,2]
[331934988,1720869040052,-500.0,0.00025479,2]
[331934989,1720869040062,-450.54,0.00025479,2]
[331934990,1720869040072,-500.0,0.00025479,2]
[331934991,1720869040082,-2269.31,0.00025479,2]
[331934992,1720869040091,-500.0,0.00025479,2]
[331934993,1720869040100,-500.0,0.00025479,2]
[331934994,1720869040111,-628.97688478,0.00025685,2]
[331934995,1720869040121,-206.94,0.00025753,2]
[331934996,1720869040130,-500.0,0.00025753,2]
[331934997,1720869040139,-2269.31,0.00025753,2]
[331934998,1720869040151,-500.0,0.00025753,2]
[331934999,1720869040162,-500.0,0.00025753,2]
[331935001,1720869040171,-500.0,0.00026027,2]
[331935003,1720869040181,-2269.31,0.00026027,2]
[331935004,1720869040190,-500.0,0.00026027,2]
[331935005,1720869040199,-559.29,0.00026027,2]
[331935006,1720869040209,-609.66,0.00026301,2]
[331935007,1720869040220,-2269.31,0.00026301,2]
[331935008,1720869040231,-500.0,0.00026301,2]
[331935009,1720869040240,-2269.31,0.00026575,2]
[331935011,1720869040250,-500.0,0.00026575,2]
[331935012,1720869040262,-500.0,0.00026838,2]
[331935013,1720869040271,-227.89443098,0.00026838,2]
[331935014,1720869040280,-447.02925773,0.00026838,2]
[331935015,1720869040289,-500.0,0.00026838,2]
[331935016,1720869040298,-250.0,0.00026838,2]
[331935017,1720869040308,-402.07307775,0.00026838,2]
[331935018,1720869040317,-500.0,0.00026838,2]
[331935019,1720869040327,-500.0,0.00026838,2]
[331935020,1720869040335,-500.0,0.00026838,2]
[331935021,1720869040345,-2752.14679812,0.00026839,3]
[331935022,1720869040355,-2269.31,0.00026849,2]
[331935023,1720869040365,-500.0,0.00026849,2]
[331935024,1720869040375,-2269.31,0.00027123,2]
[331935025,1720869040387,-500.0,0.00027123,2]
[331935026,1720869040397,-165.00896352,0.0002714,2]
[331935027,1720869040406,-499.275664,0.00027195,2]
[331935028,1720869040416,-2269.31,0.00027397,2]
[331935029,1720869040426,-500.0,0.00027397,2]
[331935030,1720869040436,-171.442054,0.00027397,120]
[331935031,1720869040448,-175.48417072,0.000274,2]
[331935032,1720869040459,-165.00896352,0.00027496,2]
[331935033,1720869040468,-390.61160967,0.00027643,2]
[331935034,1720869040478,-2269.31,0.00027671,2]
[331935035,1720869040488,-500.0,0.00027671,2]
[331935036,1720869040498,-163.239962,0.00027726,2]
[331935037,1720869040508,-2269.31,0.00027945,2]
[331935038,1720869040519,-500.0,0.00027945,2]
[331935039,1720869040528,-268.76209587,0.00028,2]
[331935040,1720869040538,-460.27974287,0.00028111,2]
[331935041,1720869040548,-2269.31,0.00028219,2]
[331935042,1720869040558,-500.0,0.00028219,2]
[331935043,1720869040567,-150.42453829,0.00028255,2]
[331935044,1720869040577,-152.78171719,0.00028267,2]
[331935045,1720869040586,-2269.31,0.00028493,2]
[331935046,1720869040597,-500.0,0.00028493,2]
[331935047,1720869040607,-152.78171719,0.00028633,2]
[331935048,1720869040618,-2269.31,0.00028767,2]
[331935049,1720869040628,-500.0,0.00028767,2]
[331935050,1720869040639,-2269.31,0.00029041,2]
[331935051,1720869040649,-500.0,0.00029041,2]
[331935052,1720869040659,-2269.31,0.00029315,2]
[331935053,1720869040669,-500.0,0.00029315,2]
[331935054,1720869040680,-165.00896352,0.00029474,2]
[331935055,1720869040690,-2269.31,0.00029589,2]
[331935056,1720869040700,-500.0,0.00029589,2]
[331935057,1720869040710,-473.23964012,0.00029817,2]
[331935058,1720869040720,-2269.31,0.00029863,2]
[331935059,1720869040730,-500.89,0.00029863,2]
[331935060,1720869040743,-152.78171719,0.00029866,2]
[331935061,1720869040754,-152.78171719,0.00029973,2]
[331935062,1720869040764,-406.72849172,0.0003,3]
[331935063,1720869040773,-154.57491897,0.0003,4]
[331935064,1720869040783,-154.57491897,0.0003,4]
[331935065,1720869040793,-5614.25337699,0.0003,4]
[331935066,1720869040802,-261.0,0.0003,2]
[331935067,1720869040812,-2269.31,0.00030136,2]
[331935068,1720869040821,-152.78171719,0.00030146,7]
[331935069,1720869040831,-152.78171719,0.00030214,7]
[331935070,1720869040840,-177.36641434,0.00030324,7]
[331935071,1720869040849,-152.78171719,0.00030392,7]
[331935072,1720869040860,-2269.31,0.0003041,2]
[331935073,1720869040869,-152.78171719,0.00030664,7]
[331935074,1720869040880,-153.79107762,0.00030672,7]
[331935075,1720869040890,-2269.31,0.00030684,2]
[331935076,1720869040900,-165.00896352,0.00030688,7]
[331935077,1720869040909,-390.61160967,0.00030729,2]
[331935078,1720869040919,-2269.52060699,0.00030958,2]
[331935079,1720869040928,-177.36641434,0.00032324,7]
[331935080,1720869040938,-261.0,0.00033,2]
[331935081,1720869040948,-261.0,0.00033,2]
[331935082,1720869040957,-499.275664,0.00033295,2]
[331935083,1720869040968,-4791.3443364,0.00033392,2]
[331935084,1720869040978,-156.0,0.00033501,2]
[331935085,1720869040988,-156.0,0.00033501,2]
[331935086,1720869041001,-156.0,0.00033501,2]
[331935087,1720869041011,-156.0,0.00033501,2]
[331935088,1720869041021,-156.0,0.00033501,2]
[331935089,1720869041032,-156.0,0.00033501,2]
[331935090,1720869041041,-156.0,0.00033501,2]
[331935091,1720869041050,-156.0,0.00033501,2]
[331935092,1720869041059,-156.0,0.00033501,2]
[331935093,1720869041070,-156.0,0.00033501,2]
[331935094,1720869041079,-156.0,0.00033501,2]
[331935095,1720869041088,-156.0,0.00033501,2]
[331935096,1720869041097,-156.0,0.00033501,2]
[331935097,1720869041107,-156.0,0.00033501,2]
[331935098,1720869041116,-153.0,0.00033502,2]
[331935099,1720869041125,-153.0,0.00033502,2]
[331935100,1720869041134,-153.0,0.00033502,2]
[331935101,1720869041143,-153.0,0.00033502,2]
[331935102,1720869041152,-153.0,0.00033502,2]
[331935103,1720869041162,-2752.14679812,0.00033505,4]
[331935104,1720869041171,-156.0,0.00033508,2]
[331935105,1720869041180,-156.0,0.00033508,2]
[331935106,1720869041189,-156.0,0.00033508,2]
[331935107,1720869041199,-156.0,0.00033508,2]
[331935108,1720869041208,-156.0,0.00033508,2]
[331935109,1720869041217,-156.0,0.00033508,2]
[331935110,1720869041227,-156.0,0.00033508,2]
[331935111,1720869041237,-156.0,0.00033508,2]
[331935112,1720869041247,-156.0,0.00033508,2]
[331935113,1720869041256,-156.0,0.00033508,2]
[331935114,1720869041265,-156.0,0.00033508,2]
[331935115,1720869041274,-156.0,0.00033508,2]
[331935116,1720869041283,-156.0,0.00033508,2]
[331935117,1720869041294,-4791.3443364,0.00033649,2]
[331935118,1720869041303,-500.0,0.00033679,2]
[331935119,1720869041312,-23506.0860259,0.0003369,2]
[331935120,1720869041322,-500.0,0.00033717,2]
[331935121,1720869041332,-4791.3443365,0.00033728,2]
[331935122,1720869041342,-460.27974287,0.00033742,2]
[331935123,1720869041351,-390.61160967,0.00033814,2]
[331935124,1720869041360,-197.7597611,0.00033886,2]
[331935125,1720869041370,-160.0,0.00033906,5]
[331935126,1720869041380,-2752.14679812,0.0003399,4]
[331935127,1720869041477,-151.0,0.00033999,6]
[331935128,1720869041487,-151.0,0.00033999,6]
[331935129,1720869041497,-12032.55600172,0.00034,120]
[331935130,1720869041506,-1000.0,0.00034,34]
[331935131,1720869041516,-254.46264233,0.00034,4]
[331935132,1720869041525,-3025.067845,0.00034,2]
[331935133,1720869041534,-177.36641434,0.00034324,13]
[331935134,1720869041543,-150.112233,0.000344,5]
[331935135,1720869041553,-2422.80787231,0.0003467,4]
[331935136,1720869041563,-150.112233,0.000347,4]
[331935137,1720869041572,-500.0,0.00034999,2]
[331935138,1720869041581,-500.0,0.00035,2]
[331935139,1720869041591,-399.9643677,0.00035,2]
[331935140,1720869041600,-552.71827498,0.00035,15]
[331935141,1720869041609,-10368.44086108,0.00035,2]
[331935142,1720869041619,-295.70282878,0.00035,120]
[331935143,1720869041628,-1215.67662641,0.00035,7]
[331935144,1720869041638,-150.112233,0.000351,2]
[331935145,1720869041647,-150.112233,0.000354,2]
[331935146,1720869041656,-282.18473312,0.0003558,4]
[331935147,1720869041666,-185.05491044,0.000356,2]
[331935148,1720869041676,-454.89914504,0.00035616,7]
[331935149,1720869041686,-7233.12,0.00035616,3]
[331935150,1720869041696,-12509.85,0.00035616,3]
[331935151,1720869041706,-10424.87,0.00035616,3]
[331935152,1720869041715,-200.0,0.00035685,120]
[331935153,1720869041725,-150.112233,0.000358,3]
[331935154,1720869041734,-1000.0,0.00036,120]
[331935155,1720869041744,-1000.0,0.00036,36]
[331935156,1720869041753,-261.0,0.00036,2]
[331935157,1720869041763,-261.0,0.00036,2]
[331935158,1720869041772,-261.0,0.00036,2]
[331935159,1720869041782,-150.112233,0.000361,3]
[331935160,1720869041792,-200.0,0.00036126,120]
[331935161,1720869041801,-203.899999,0.000362,12]
[331935162,1720869041810,-257.99621856,0.0003624,2]
[331935163,1720869041819,-177.36641434,0.00036324,21]
[331935164,1720869041829,-707.17317729,0.00036351,10]
[331935165,1720869041838,-554.42762896,0.00036485,57]
[331935166,1720869041848,-150.112233,0.000365,5]
[331935167,1720869041858,-538.0,0.000367,62]
[331935168,1720869041867,-353.3,0.000367,62]
[331935169,1720869041876,-150.59339783,0.00036822,2]
[331935170,1720869041885,-2658.83078244,0.000369,30]
[331935171,1720869041895,-150.112233,0.000369,4]
[331935172,1720869041904,-585.7,0.000369,5]
[331935173,1720869041913,-390.61160967,0.000369,2]
[331935174,1720869041923,-2752.14679812,0.00036989,4]
[331935175,1720869041933,-11008.5871925,0.0003699,4]
[331935176,1720869041942,-458.36,0.00036999,2]
[331935177,1720869041952,-458.36,0.00036999,2]
[331935178,1720869041961,-458.36,0.00036999,2]
[331935179,1720869041971,-458.36,0.00036999,2]
[331935180,1720869041980,-458.36,0.00036999,2]
[331935181,1720869041995,-458.36,0.00036999,2]
[331935182,1720869042005,-458.36,0.00036999,2]
[331935183,1720869042014,-458.36,0.00036999,2]
[331935184,1720869042024,-458.36,0.00036999,2]
[331935185,1720869042034,-458.36,0.00036999,2]
[331935186,1720869042044,-500.0,0.00036999,2]
[331935187,1720869042054,-500.0,0.00036999,2]
[331935188,1720869042064,-3279.08935335,0.00037,5]
[331935189,1720869042074,-154.69833824,0.00037,4]
[331935190,1720869042084,-48310.48376587,0.00037,120]
[331935215,1720869043121,-250.0,0.00024065,2]
[331935216,1720869043130,-500.0,0.00024657,2]
[331935217,1720869043140,-381.1800309,0.00024657,2]
[331935218,1720869043150,-7.59354595,0.00024657,2]
[331935242,1720870033154,-241.42569214,0.00021096,2]
[331935243,1720870034213,-207.92240686,0.00021096,2]
[331935244,1720870034235,-166.425221,0.00021096,2]
[331935245,1720870034258,-496.12382029,0.00022943,2]
[331935246,1720870034280,-163.239962,0.00023087,2]
[331935247,1720870034302,-1983.47727061,0.00023126,2]
[331935248,1720870044118,-1016.52272939,0.00023126,2]
[331935249,1720870044138,-2422.80787231,0.00023453,2]
[331935250,1720870044160,-300.0,0.00023459,2]
[331935251,1720870044179,-2469.8243003,0.0002346,2]
[331935252,1720870044200,-250.0,0.00023549,2]
[331935253,1720870044222,-580.42758695,0.00024325,2]
[331935254,1720870044244,-1361.19830126,0.00024364,2]
[331935255,1720870044264,-950.00727179,0.00024481,2]
[331935256,1720870044287,-1000.0,0.00024657,2]
[331935257,1720870044310,-500.0,0.00024657,2]
[331935258,1720870044335,-500.0,0.00024657,2]
[331935259,1720870044358,-500.0,0.00024657,2]
[331935260,1720870044384,-500.0,0.00024657,2]
[331935261,1720870044410,-500.0,0.00024657,2]
[331935262,1720870044433,-500.0,0.00024657,2]
[331935263,1720870044458,-500.0,0.00024657,2]
[331935264,1720870044478,-521.05740123,0.00024657,2]
[331935265,1720870044502,-2244.84007704,0.00024657,7]
[331935266,1720870044525,-500.0,0.00024657,2]
[331935267,1720870044547,-428.62808121,0.00024657,2]
[331935268,1720870044568,-133.58551696,0.00024657,2]
[331935273,1720870115446,9986.89148454,0.000139,2]
[331935276,1720870139600,-185.89247832,0.000191,2]
[331935278,1720870139658,-676.00306426,0.0002,2]
[331935279,1720870139714,-311.48722601,0.0002,2]
[331935280,1720870140349,-861.89554258,0.0002,2]
[331935282,1720870164111,-6207.28576747,0.0002,2]
[331935283,1720870164132,-1551.64131705,0.0002,2]
[331935284,1720870164153,-7577.0769712,0.0002,2]
[331935286,1720870164597,-902.6011088,0.0002,2]
[331935287,1720870164694,-902.6011088,0.0002,2]
[331935288,1720870169091,-15442.32948547,0.0002,2]
[331935289,1720870169130,-23889.51405035,0.0002,2]
[331935290,1720870173668,354.46681452,0.00016848,2]
[331935292,1720870185196,10588.8376518,0.00016848,2]
[331935295,1720870194223,155.52510828,0.00016848,2]
[331935318,1720870199574,277.68904932,0.00016848,2]
[331935319,1720870203252,315.49309342,0.00022264,2]
[331935512,1720870238364,-345.81993579,0.00023966,2]
[331935513,1720870238375,-158.35036999,0.00023968,2]
[331935514,1720870238389,-500.0,0.00024657,2]
[331935515,1720870238400,-500.0,0.00024657,2]
[331935516,1720870238411,-500.0,0.00024657,2]
[331935517,1720870238422,-500.0,0.00024657,2]
[331935518,1720870238434,-500.0,0.00024657,2]
[331935519,1720870238445,-500.0,0.00024657,2]
[331935520,1720870238455,-500.0,0.00024657,2]
[331935521,1720870238464,-500.0,0.00024657,2]
[331935522,1720870238474,-500.0,0.00024657,2]
[331935523,1720870238485,-500.0,0.00024657,2]
[331935524,1720870238495,-500.0,0.00024657,2]
[331935525,1720870238505,-500.0,0.00024657,2]
[331935526,1720870238514,-500.0,0.00024657,2]
[331935527,1720870238524,-500.0,0.00024657,2]
[331935529,1720870238533,-500.0,0.00024657,2]
[331935531,1720870238543,-500.0,0.00024657,2]
[331935532,1720870238554,-291.15818297,0.00024657,2]